[Event "Titled Tuesday Blitz July 6 2021"]
[White "Omariev, Maksim"]
[Black "Prraneeth Vuppala"]
[WhiteFideId "4193423"]
[BlackFideId "46622373"]
[WhiteElo "2381"]
[BlackElo "1759"]
[Result "1-0"]
[Round "08"]
[TimeControl "180+1"]
[Date "2021.07.06"]
[WhiteClock "0:00:06"]
[BlackClock "0:00:15"]

1. g4 {[%clk 0:03:00]}  d5 {[%clk 0:02:59]} 2. Bg2 {[%clk 0:03:01]}  e5 {[%clk 0:02:59]} 3. d4 {[%clk 0:02:47]}  e4 {[%clk 0:02:57]} 4. h3 {[%clk 0:02:42]}  h5 {[%clk 0:02:56]} 5. g5 {[%clk 0:02:41]}  h4 {[%clk 0:02:55]} 6. c4 {[%clk 0:02:35]}  c6 {[%clk 0:02:55]} 7. Nc3 {[%clk 0:02:34]}  Bd6 {[%clk 0:02:42]} 8. cxd5 {[%clk 0:02:28]}  cxd5 {[%clk 0:02:39]} 9. Nxd5 {[%clk 0:02:27]}  Ne7 {[%clk 0:02:39]} 10. Nc3 {[%clk 0:02:12]}  O-O {[%clk 0:02:39]} 11. Bxe4 {[%clk 0:02:02]}  Nbc6 {[%clk 0:02:38]} 12. Nf3 {[%clk 0:02:01]}  Bf5 {[%clk 0:02:32]} 13. Bxf5 {[%clk 0:01:50]}  Nxf5 {[%clk 0:02:33]} 14. e4 {[%clk 0:01:51]}  Nfe7 {[%clk 0:02:26]} 15. Nxh4 {[%clk 0:01:39]}  Bc7 {[%clk 0:02:15]} 16. Be3 {[%clk 0:01:38]}  Bb6 {[%clk 0:02:13]} 17. Nf3 {[%clk 0:01:24]}  Na5 {[%clk 0:01:54]} 18. Qd3 {[%clk 0:01:16]}  Rc8 {[%clk 0:01:53]} 19. O-O-O {[%clk 0:01:16]}  Nc4 {[%clk 0:01:53]} 20. Kb1 {[%clk 0:01:16]}  Ba5 {[%clk 0:01:51]} 21. Rc1 {[%clk 0:01:07]}  Qb6 {[%clk 0:01:24]} 22. Na4 {[%clk 0:01:00]}  Qb5 {[%clk 0:01:21]} 23. Qb3 {[%clk 0:00:56]}  Qc6 {[%clk 0:01:17]} 24. d5 {[%clk 0:00:48]}  Nxd5 {[%clk 0:01:05]} 25. exd5 {[%clk 0:00:46]}  Qxd5 {[%clk 0:01:06]} 26. Nd4 {[%clk 0:00:35]}  Bd2 {[%clk 0:01:00]} 27. Rcd1 {[%clk 0:00:24]}  Bxe3 {[%clk 0:00:54]} 28. fxe3 {[%clk 0:00:23]}  Qe4+ {[%clk 0:00:51]} 29. Qd3 {[%clk 0:00:19]}  Qe5 {[%clk 0:00:49]} 30. Nc3 {[%clk 0:00:17]}  Rfd8 {[%clk 0:00:47]} 31. Rhe1 {[%clk 0:00:16]}  g6 {[%clk 0:00:42]} 32. h4 {[%clk 0:00:16]}  b5 {[%clk 0:00:39]} 33. h5 {[%clk 0:00:16]}  b4 {[%clk 0:00:39]} 34. Nce2 {[%clk 0:00:10]}  gxh5 {[%clk 0:00:33]} 35. Nf4 {[%clk 0:00:09]}  Qb8 {[%clk 0:00:21]} 36. Nxh5 {[%clk 0:00:09]}  Rxd4 {[%clk 0:00:19]} 37. Nf6+ {[%clk 0:00:09]}  Kf8 {[%clk 0:00:18]} 38. exd4 {[%clk 0:00:09]}  Na3+ {[%clk 0:00:18]} 39. bxa3 {[%clk 0:00:07]}  bxa3+ {[%clk 0:00:17]} 40. Qb3 {[%clk 0:00:08]}  Qh2 {[%clk 0:00:17]} 41. Rh1 {[%clk 0:00:05]}  Qf2 {[%clk 0:00:15]} 42. Rh8+ {[%clk 0:00:05]}  Kg7 {[%clk 0:00:16]} 43. Rxc8 {[%clk 0:00:05]}  Qf5+ {[%clk 0:00:16]} 44. Rc2 {[%clk 0:00:04]}  Qf4 {[%clk 0:00:16]} 45. Nd5 {[%clk 0:00:03]}  Qd6 {[%clk 0:00:15]} 46. Nc3 {[%clk 0:00:03]}  a5 {[%clk 0:00:15]} 47. d5 {[%clk 0:00:03]}  a4 {[%clk 0:00:15]} 48. Qb5 {[%clk 0:00:04]}  Qe5 {[%clk 0:00:15]} 49. Qxa4 {[%clk 0:00:03]}  Qb8+ {[%clk 0:00:15]} 50. Qb3 {[%clk 0:00:03]}  Qd6 {[%clk 0:00:15]} 51. Nb5 {[%clk 0:00:03]}  Qe5 {[%clk 0:00:15]} 52. Qxa3 {[%clk 0:00:03]}  Qxg5 {[%clk 0:00:15]} 53. Qb2+ {[%clk 0:00:04]}  Kh7 {[%clk 0:00:15]} 54. Rcd2 {[%clk 0:00:03]}  Qe7 {[%clk 0:00:15]} 55. d6 {[%clk 0:00:04]}  Qb7 {[%clk 0:00:15]} 56. Nc7 {[%clk 0:00:04]}  Qe4+ {[%clk 0:00:15]} 57. Ka1 {[%clk 0:00:04]}  f6 {[%clk 0:00:15]} 58. Qb1 {[%clk 0:00:04]}  f5 {[%clk 0:00:15]} 59. Qxe4 {[%clk 0:00:04]}  fxe4 {[%clk 0:00:15]} 60. Re2 {[%clk 0:00:05]}  e3 {[%clk 0:00:15]} 61. Rde1 {[%clk 0:00:06]} 1-0


[Site "https://www.chess.com"]

[Event "Titled Tuesday Blitz July 6 2021"]
[White "Pereira, Juliano Resende M"]
[Black "Arabidze, Meri"]
[WhiteFideId "2109816"]
[BlackFideId "13604040"]
[WhiteElo "2454"]
[BlackElo "2432"]
[Result "0-1"]
[Round "08"]
[TimeControl "180+1"]
[Date "2021.07.06"]
[WhiteClock "0:00:48"]
[BlackClock "0:01:57"]

1. c4 {[%clk 0:03:00]}  e6 {[%clk 0:02:59]} 2. g3 {[%clk 0:03:00]}  f5 {[%clk 0:02:59]} 3. Bg2 {[%clk 0:03:01]}  Nf6 {[%clk 0:03:00]} 4. d3 {[%clk 0:02:59]}  d5 {[%clk 0:03:00]} 5. Nd2 {[%clk 0:02:59]}  Nc6 {[%clk 0:03:00]} 6. Ngf3 {[%clk 0:02:59]}  Be7 {[%clk 0:03:00]} 7. O-O {[%clk 0:02:59]}  O-O {[%clk 0:03:00]} 8. e4 {[%clk 0:02:58]}  dxe4 {[%clk 0:02:56]} 9. dxe4 {[%clk 0:02:58]}  f4 {[%clk 0:02:56]} 10. e5 {[%clk 0:02:43]}  Ng4 {[%clk 0:02:55]} 11. Qe2 {[%clk 0:02:43]}  fxg3 {[%clk 0:02:50]} 12. hxg3 {[%clk 0:02:40]}  Qe8 {[%clk 0:02:46]} 13. b3 {[%clk 0:02:25]}  Qh5 {[%clk 0:02:45]} 14. Bb2 {[%clk 0:02:25]}  Bc5 {[%clk 0:02:40]} 15. a3 {[%clk 0:02:07]}  Bd4 {[%clk 0:02:37]} 16. Rfb1 {[%clk 0:01:10]}  Bxf2+ {[%clk 0:02:31]} 17. Kf1 {[%clk 0:01:10]}  Bxg3 {[%clk 0:02:28]} 18. Ne4 {[%clk 0:01:00]}  Nh2+ {[%clk 0:02:24]} 19. Kg1 {[%clk 0:00:59]}  Nxf3+ {[%clk 0:02:13]} 20. Bxf3 {[%clk 0:00:50]}  Rxf3 {[%clk 0:02:13]} 21. Kg2 {[%clk 0:00:48]}  Rf2+ {[%clk 0:01:57]} 0-1


[Site "https://www.chess.com"]

[Event "Titled Tuesday Blitz July 6 2021"]
[White "Pham, Le Thao Nguyen"]
[Black "Vogel, Roven"]
[WhiteFideId "12401226"]
[BlackFideId "12908088"]
[WhiteElo "2286"]
[BlackElo "2516"]
[Result "0-1"]
[Round "08"]
[TimeControl "180+1"]
[Date "2021.07.06"]
[WhiteClock "0:00:04"]
[BlackClock "0:00:18"]

1. d4 {[%clk 0:03:00]}  d5 {[%clk 0:02:58]} 2. Nf3 {[%clk 0:03:00]}  Nf6 {[%clk 0:02:58]} 3. Bf4 {[%clk 0:03:00]}  c5 {[%clk 0:02:57]} 4. e3 {[%clk 0:03:01]}  Nc6 {[%clk 0:02:58]} 5. Nbd2 {[%clk 0:03:01]}  Bg4 {[%clk 0:02:44]} 6. c3 {[%clk 0:02:53]}  e6 {[%clk 0:02:44]} 7. Qb3 {[%clk 0:02:52]}  Qc8 {[%clk 0:02:44]} 8. h3 {[%clk 0:02:42]}  Bh5 {[%clk 0:02:44]} 9. Ne5 {[%clk 0:02:35]}  Nxe5 {[%clk 0:02:40]} 10. Bxe5 {[%clk 0:02:34]}  Nd7 {[%clk 0:02:40]} 11. Bb5 {[%clk 0:02:27]}  a6 {[%clk 0:02:24]} 12. Bxd7+ {[%clk 0:02:12]}  Qxd7 {[%clk 0:02:25]} 13. dxc5 {[%clk 0:02:10]}  Bxc5 {[%clk 0:02:24]} 14. g4 {[%clk 0:02:04]}  f6 {[%clk 0:02:21]} 15. Bd4 {[%clk 0:02:02]}  Bxd4 {[%clk 0:02:19]} 16. exd4 {[%clk 0:01:45]}  Bg6 {[%clk 0:02:20]} 17. f3 {[%clk 0:01:19]}  O-O {[%clk 0:02:19]} 18. Kf2 {[%clk 0:01:11]}  e5 {[%clk 0:02:19]} 19. Rad1 {[%clk 0:00:58]}  exd4 {[%clk 0:02:14]} 20. Ne4 {[%clk 0:00:43]}  f5 {[%clk 0:01:48]} 21. Nc5 {[%clk 0:00:36]}  Qf7 {[%clk 0:01:35]} 22. Rxd4 {[%clk 0:00:34]}  fxg4 {[%clk 0:01:30]} 23. f4 {[%clk 0:00:22]}  b6 {[%clk 0:01:24]} 24. Na4 {[%clk 0:00:16]}  Be4 {[%clk 0:01:16]} 25. Rxe4 {[%clk 0:00:15]}  dxe4 {[%clk 0:01:17]} 26. Qxf7+ {[%clk 0:00:15]}  Rxf7 {[%clk 0:01:17]} 27. Ke3 {[%clk 0:00:15]}  Raf8 {[%clk 0:01:02]} 28. Nxb6 {[%clk 0:00:13]}  Rxf4 {[%clk 0:01:01]} 29. hxg4 {[%clk 0:00:13]}  Rxg4 {[%clk 0:01:00]} 30. Nd5 {[%clk 0:00:12]}  Rf3+ {[%clk 0:01:00]} 31. Kd4 {[%clk 0:00:11]}  Rd3+ {[%clk 0:00:51]} 32. Kc4 {[%clk 0:00:11]}  Rd2 {[%clk 0:00:47]} 33. Ne3 {[%clk 0:00:10]}  Rg5 {[%clk 0:00:44]} 34. b4 {[%clk 0:00:10]}  Rxa2 {[%clk 0:00:41]} 35. Rd1 {[%clk 0:00:08]}  h5 {[%clk 0:00:40]} 36. Rd8+ {[%clk 0:00:07]}  Kh7 {[%clk 0:00:40]} 37. Re8 {[%clk 0:00:08]}  h4 {[%clk 0:00:36]} 38. Rxe4 {[%clk 0:00:07]}  Rh5 {[%clk 0:00:37]} 39. Ng4 {[%clk 0:00:04]}  h3 {[%clk 0:00:18]} 0-1


[Site "https://www.chess.com"]

[Event "Titled Tuesday Blitz July 6 2021"]
[White "Plat, Vojtech"]
[Black "Solon, Nathan"]
[WhiteFideId "325740"]
[BlackFideId "2017229"]
[WhiteElo "2486"]
[BlackElo "2635"]
[Result "1/2-1/2"]
[Round "08"]
[TimeControl "180+1"]
[Date "2021.07.06"]
[WhiteClock "0:01:07"]
[BlackClock "0:00:17"]

1. e4 {[%clk 0:03:00]}  c5 {[%clk 0:02:58]} 2. Nf3 {[%clk 0:03:00]}  d6 {[%clk 0:02:59]} 3. d4 {[%clk 0:02:59]}  cxd4 {[%clk 0:02:59]} 4. Qxd4 {[%clk 0:02:59]}  Nc6 {[%clk 0:02:59]} 5. Bb5 {[%clk 0:02:59]}  Bd7 {[%clk 0:03:00]} 6. Bxc6 {[%clk 0:02:59]}  Bxc6 {[%clk 0:03:00]} 7. Nc3 {[%clk 0:02:59]}  Nf6 {[%clk 0:02:56]} 8. Bg5 {[%clk 0:02:58]}  e6 {[%clk 0:02:55]} 9. O-O-O {[%clk 0:02:58]}  Be7 {[%clk 0:02:56]} 10. Rhe1 {[%clk 0:02:58]}  O-O {[%clk 0:02:55]} 11. Qd2 {[%clk 0:02:58]}  Qa5 {[%clk 0:02:52]} 12. Kb1 {[%clk 0:02:57]}  Rfc8 {[%clk 0:02:48]} 13. Nd5 {[%clk 0:02:53]}  Qxd2 {[%clk 0:02:46]} 14. Nxe7+ {[%clk 0:02:52]}  Kf8 {[%clk 0:02:46]} 15. Nxd2 {[%clk 0:02:42]}  Kxe7 {[%clk 0:02:45]} 16. Nc4 {[%clk 0:02:42]}  Rd8 {[%clk 0:02:39]} 17. f4 {[%clk 0:02:38]}  Bxe4 {[%clk 0:02:12]} 18. Rxe4 {[%clk 0:02:03]}  d5 {[%clk 0:02:11]} 19. Red4 {[%clk 0:02:02]}  dxc4 {[%clk 0:02:11]} 20. Kc1 {[%clk 0:02:03]}  Rxd4 {[%clk 0:02:05]} 21. Rxd4 {[%clk 0:02:02]}  Rc8 {[%clk 0:02:03]} 22. Kd2 {[%clk 0:02:01]}  h6 {[%clk 0:01:55]} 23. Bh4 {[%clk 0:01:59]}  Rc5 {[%clk 0:01:48]} 24. Bxf6+ {[%clk 0:01:44]}  gxf6 {[%clk 0:01:38]} 25. Kc3 {[%clk 0:01:44]}  b5 {[%clk 0:01:38]} 26. Kb4 {[%clk 0:01:43]}  Rh5 {[%clk 0:01:17]} 27. h3 {[%clk 0:01:43]}  a6 {[%clk 0:00:52]} 28. Ka5 {[%clk 0:01:40]}  Rd5 {[%clk 0:00:47]} 29. Rxd5 {[%clk 0:01:34]}  exd5 {[%clk 0:00:48]} 30. c3 {[%clk 0:01:35]}  Kd6 {[%clk 0:00:43]} 31. a3 {[%clk 0:01:35]}  f5 {[%clk 0:00:29]} 32. Kxa6 {[%clk 0:01:33]}  Kc6 {[%clk 0:00:29]} 33. h4 {[%clk 0:01:29]}  h5 {[%clk 0:00:28]} 34. g3 {[%clk 0:01:29]}  f6 {[%clk 0:00:27]} 35. Ka7 {[%clk 0:01:25]}  Kc7 {[%clk 0:00:24]} 36. Ka6 {[%clk 0:01:25]}  Kc6 {[%clk 0:00:24]} 37. Ka5 {[%clk 0:01:23]}  Kc5 {[%clk 0:00:24]} 38. a4 {[%clk 0:01:10]}  bxa4 {[%clk 0:00:24]} 39. Kxa4 {[%clk 0:01:10]}  Kc6 {[%clk 0:00:17]} 40. Ka5 {[%clk 0:01:07]}  Kc5 {[%clk 0:00:17]} 41. Ka4 {[%clk 0:01:06]}  Kc6 {[%clk 0:00:17]} 42. Ka5 {[%clk 0:01:06]}  Kc5 {[%clk 0:00:18]} 43. Ka6 {[%clk 0:01:06]}  Kc6 {[%clk 0:00:18]} 44. Ka7 {[%clk 0:01:07]}  Kc7 {[%clk 0:00:17]} 45. Ka6 {[%clk 0:01:07]}  Kc6 {[%clk 0:00:17]} 46. Ka5 {[%clk 0:01:07]} 1/2-1/2


[Site "https://www.chess.com"]

[Event "Titled Tuesday Blitz July 6 2021"]
[White "Quintiliano Pinto, Renato R."]
[Black "Boidiya, Sidi"]
[WhiteFideId "2117568"]
[BlackFideId "19600100"]
[WhiteElo "2439"]
[BlackElo "2113"]
[Result "1-0"]
[Round "08"]
[TimeControl "180+1"]
[Date "2021.07.06"]
[WhiteClock "0:00:10"]
[BlackClock "0:00:07"]

1. Nf3 {[%clk 0:02:55]}  Nf6 {[%clk 0:02:58]} 2. c4 {[%clk 0:02:55]}  e6 {[%clk 0:02:57]} 3. e3 {[%clk 0:02:53]}  b6 {[%clk 0:02:56]} 4. b3 {[%clk 0:02:52]}  Bb7 {[%clk 0:02:55]} 5. Bb2 {[%clk 0:02:52]}  c5 {[%clk 0:02:55]} 6. Nc3 {[%clk 0:02:51]}  d5 {[%clk 0:02:55]} 7. cxd5 {[%clk 0:02:51]}  Nxd5 {[%clk 0:02:55]} 8. Bb5+ {[%clk 0:02:47]}  Nd7 {[%clk 0:02:53]} 9. Ne5 {[%clk 0:02:42]}  Nf6 {[%clk 0:02:53]} 10. Nxd7 {[%clk 0:02:28]}  Nxd7 {[%clk 0:02:52]} 11. O-O {[%clk 0:02:28]}  a6 {[%clk 0:02:50]} 12. Be2 {[%clk 0:02:28]}  Be7 {[%clk 0:02:50]} 13. d4 {[%clk 0:02:14]}  O-O {[%clk 0:02:49]} 14. d5 {[%clk 0:02:09]}  exd5 {[%clk 0:02:46]} 15. Nxd5 {[%clk 0:02:08]}  Nf6 {[%clk 0:02:41]} 16. Nxe7+ {[%clk 0:02:07]}  Qxe7 {[%clk 0:02:42]} 17. Bf3 {[%clk 0:02:02]}  Rad8 {[%clk 0:02:21]} 18. Qe2 {[%clk 0:01:59]}  Ne4 {[%clk 0:02:19]} 19. Rad1 {[%clk 0:01:55]}  f5 {[%clk 0:02:18]} 20. Rxd8 {[%clk 0:01:45]}  Rxd8 {[%clk 0:02:16]} 21. Rd1 {[%clk 0:01:45]}  Rd6 {[%clk 0:02:16]} 22. Qc2 {[%clk 0:01:08]}  Rxd1+ {[%clk 0:01:53]} 23. Qxd1 {[%clk 0:01:04]}  h6 {[%clk 0:01:51]} 24. Be2 {[%clk 0:01:01]}  Qd6 {[%clk 0:01:44]} 25. Qxd6 {[%clk 0:00:52]}  Nxd6 {[%clk 0:01:44]} 26. Be5 {[%clk 0:00:46]}  Nf7 {[%clk 0:01:15]} 27. Bc7 {[%clk 0:00:44]}  b5 {[%clk 0:01:15]} 28. Bb6 {[%clk 0:00:41]}  Bd5 {[%clk 0:01:02]} 29. Bxc5 {[%clk 0:00:39]}  g5 {[%clk 0:01:00]} 30. f3 {[%clk 0:00:39]}  Kg7 {[%clk 0:00:59]} 31. Kf2 {[%clk 0:00:39]}  Kg6 {[%clk 0:01:00]} 32. Bd4 {[%clk 0:00:36]}  Nd8 {[%clk 0:00:57]} 33. Bd3 {[%clk 0:00:34]}  h5 {[%clk 0:00:46]} 34. g4 {[%clk 0:00:21]}  hxg4 {[%clk 0:00:45]} 35. fxg4 {[%clk 0:00:22]}  Be6 {[%clk 0:00:45]} 36. Kg3 {[%clk 0:00:20]}  Nc6 {[%clk 0:00:42]} 37. Bc3 {[%clk 0:00:20]}  Ne7 {[%clk 0:00:40]} 38. Kf3 {[%clk 0:00:14]}  Bd5+ {[%clk 0:00:33]} 39. Kg3 {[%clk 0:00:13]}  Be6 {[%clk 0:00:33]} 40. h3 {[%clk 0:00:13]}  Nd5 {[%clk 0:00:32]} 41. Bd4 {[%clk 0:00:13]}  Nb4 {[%clk 0:00:29]} 42. Bb1 {[%clk 0:00:13]}  Nc6 {[%clk 0:00:29]} 43. Bc3 {[%clk 0:00:14]}  b4 {[%clk 0:00:28]} 44. Bb2 {[%clk 0:00:13]}  a5 {[%clk 0:00:24]} 45. Ba1 {[%clk 0:00:12]}  Na7 {[%clk 0:00:22]} 46. Bd3 {[%clk 0:00:10]}  Nc6 {[%clk 0:00:17]} 47. Bb2 {[%clk 0:00:10]}  Ne7 {[%clk 0:00:16]} 48. Bd4 {[%clk 0:00:09]}  Nd5 {[%clk 0:00:16]} 49. gxf5+ {[%clk 0:00:09]}  Bxf5 {[%clk 0:00:15]} 50. e4 {[%clk 0:00:10]}  Ne7 {[%clk 0:00:06]} 51. exf5+ {[%clk 0:00:10]}  Nxf5+ {[%clk 0:00:07]} 52. Kg4 {[%clk 0:00:10]} 1-0


[Site "https://www.chess.com"]

[Event "Titled Tuesday Blitz July 6 2021"]
[White "Reprintsev, Alexander"]
[Black "Timmermans, Mark"]
[WhiteFideId "14100541"]
[BlackFideId "1026399"]
[WhiteElo "2126"]
[BlackElo "2460"]
[Result "0-1"]
[Round "08"]
[TimeControl "180+1"]
[Date "2021.07.06"]
[WhiteClock "0:00:07"]
[BlackClock "0:00:14"]

1. e4 {[%clk 0:02:42]}  e5 {[%clk 0:02:58]} 2. Bc4 {[%clk 0:02:39]}  Nf6 {[%clk 0:02:57]} 3. Nc3 {[%clk 0:02:38]}  Nxe4 {[%clk 0:02:57]} 4. Qh5 {[%clk 0:02:38]}  Nd6 {[%clk 0:02:54]} 5. Bb3 {[%clk 0:02:37]}  Nc6 {[%clk 0:02:54]} 6. Nb5 {[%clk 0:02:36]}  g6 {[%clk 0:02:54]} 7. Qf3 {[%clk 0:02:34]}  f5 {[%clk 0:02:54]} 8. Qd5 {[%clk 0:02:34]}  Qf6 {[%clk 0:02:54]} 9. Nxc7+ {[%clk 0:02:33]}  Kd8 {[%clk 0:02:55]} 10. Nxa8 {[%clk 0:02:33]}  b6 {[%clk 0:02:55]} 11. Qf3 {[%clk 0:01:54]}  Bb7 {[%clk 0:02:54]} 12. c3 {[%clk 0:01:47]}  Bxa8 {[%clk 0:02:40]} 13. Bd5 {[%clk 0:01:47]}  Kc7 {[%clk 0:02:38]} 14. h4 {[%clk 0:01:45]}  Bh6 {[%clk 0:02:37]} 15. d4 {[%clk 0:01:44]}  Bxc1 {[%clk 0:02:29]} 16. Rxc1 {[%clk 0:01:43]}  exd4 {[%clk 0:02:29]} 17. Ne2 {[%clk 0:01:42]}  dxc3 {[%clk 0:02:22]} 18. Bxc6 {[%clk 0:01:40]}  Bxc6 {[%clk 0:02:21]} 19. Qxc3 {[%clk 0:01:40]}  Qxc3+ {[%clk 0:02:19]} 20. Rxc3 {[%clk 0:01:40]}  Re8 {[%clk 0:02:19]} 21. f3 {[%clk 0:01:35]}  Kb7 {[%clk 0:02:08]} 22. Kf2 {[%clk 0:01:33]}  Nf7 {[%clk 0:01:50]} 23. Rd1 {[%clk 0:01:29]}  Ne5 {[%clk 0:01:13]} 24. Nd4 {[%clk 0:01:28]}  Rf8 {[%clk 0:00:51]} 25. Nxc6 {[%clk 0:01:24]}  dxc6 {[%clk 0:00:49]} 26. Re3 {[%clk 0:01:19]}  Nc4 {[%clk 0:00:38]} 27. Re7+ {[%clk 0:01:18]}  Ka6 {[%clk 0:00:39]} 28. b3 {[%clk 0:01:16]}  Na5 {[%clk 0:00:39]} 29. Rdd7 {[%clk 0:01:13]}  h5 {[%clk 0:00:33]} 30. Rxa7+ {[%clk 0:01:12]}  Kb5 {[%clk 0:00:33]} 31. Re6 {[%clk 0:01:10]}  Rd8 {[%clk 0:00:31]} 32. a4+ {[%clk 0:00:58]}  Kb4 {[%clk 0:00:29]} 33. Rxg6 {[%clk 0:00:54]}  Kxb3 {[%clk 0:00:29]} 34. Ra6 {[%clk 0:00:39]}  Rb8 {[%clk 0:00:28]} 35. Rg5 {[%clk 0:00:36]}  Kxa4 {[%clk 0:00:23]} 36. Rxf5 {[%clk 0:00:37]}  c5 {[%clk 0:00:23]} 37. Rxh5 {[%clk 0:00:34]}  c4 {[%clk 0:00:23]} 38. Rh7 {[%clk 0:00:24]}  c3 {[%clk 0:00:21]} 39. Rc7 {[%clk 0:00:23]}  Kb3 {[%clk 0:00:21]} 40. h5 {[%clk 0:00:21]}  c2 {[%clk 0:00:21]} 41. h6 {[%clk 0:00:17]}  Rb7 {[%clk 0:00:21]} 42. Rxb7 {[%clk 0:00:13]}  c1=Q {[%clk 0:00:19]} 43. Rbxb6+ {[%clk 0:00:13]}  Ka4 {[%clk 0:00:17]} 44. h7 {[%clk 0:00:12]}  Qc2+ {[%clk 0:00:16]} 45. Kg3 {[%clk 0:00:12]}  Qxh7 {[%clk 0:00:17]} 46. Rg6 {[%clk 0:00:12]}  Qc7+ {[%clk 0:00:17]} 47. Kh3 {[%clk 0:00:11]}  Qd7+ {[%clk 0:00:17]} 48. g4 {[%clk 0:00:12]}  Qd1 {[%clk 0:00:16]} 49. Kh4 {[%clk 0:00:10]}  Qxf3 {[%clk 0:00:16]} 50. Kh5 {[%clk 0:00:09]}  Qh3+ {[%clk 0:00:16]} 51. Kg5 {[%clk 0:00:09]}  Kb5 {[%clk 0:00:17]} 52. Rab6+ {[%clk 0:00:09]}  Kc5 {[%clk 0:00:17]} 53. Rbf6 {[%clk 0:00:09]}  Nc4 {[%clk 0:00:16]} 54. Rf5+ {[%clk 0:00:10]}  Kd4 {[%clk 0:00:17]} 55. Re6 {[%clk 0:00:09]}  Qh2 {[%clk 0:00:15]} 56. Rf4+ {[%clk 0:00:09]}  Kd5 {[%clk 0:00:15]} 57. Ree4 {[%clk 0:00:09]}  Nd6 {[%clk 0:00:13]} 58. Rd4+ {[%clk 0:00:09]}  Kc6 {[%clk 0:00:13]} 59. Ra4 {[%clk 0:00:09]}  Kd7 {[%clk 0:00:13]} 60. Rfd4 {[%clk 0:00:09]}  Ke6 {[%clk 0:00:13]} 61. Ra6 {[%clk 0:00:08]}  Qe5+ {[%clk 0:00:13]} 62. Kg6 {[%clk 0:00:07]}  Qxd4 {[%clk 0:00:14]} 63. g5 {[%clk 0:00:07]}  Qd3+ {[%clk 0:00:14]} 0-1


[Site "https://www.chess.com"]

[Event "Titled Tuesday Blitz July 6 2021"]
[White "Steven_Rojas"]
[Black "Pakleza, Zbigniew"]
[BlackFideId "1119290"]
[WhiteElo "2558"]
[BlackElo "2526"]
[Result "0-1"]
[Round "08"]
[TimeControl "180+1"]
[Date "2021.07.06"]
[WhiteClock "0:00:03"]
[BlackClock "0:00:05"]

1. e4 {[%clk 0:03:00]}  d6 {[%clk 0:02:58]} 2. d4 {[%clk 0:03:00]}  Nf6 {[%clk 0:02:57]} 3. Nc3 {[%clk 0:03:00]}  c6 {[%clk 0:02:58]} 4. Nf3 {[%clk 0:02:59]}  Bg4 {[%clk 0:02:57]} 5. a4 {[%clk 0:02:51]}  e6 {[%clk 0:02:57]} 6. Bd3 {[%clk 0:02:49]}  Be7 {[%clk 0:02:55]} 7. h3 {[%clk 0:02:45]}  Bh5 {[%clk 0:02:55]} 8. a5 {[%clk 0:02:36]}  d5 {[%clk 0:02:54]} 9. e5 {[%clk 0:02:35]}  Nfd7 {[%clk 0:02:54]} 10. Nb1 {[%clk 0:02:19]}  c5 {[%clk 0:02:52]} 11. c3 {[%clk 0:02:19]}  Nc6 {[%clk 0:02:52]} 12. g4 {[%clk 0:02:15]}  Bg6 {[%clk 0:02:51]} 13. dxc5 {[%clk 0:02:03]}  Nxc5 {[%clk 0:02:38]} 14. Bxg6 {[%clk 0:02:02]}  hxg6 {[%clk 0:02:39]} 15. b4 {[%clk 0:02:02]}  Ne4 {[%clk 0:02:32]} 16. Qd3 {[%clk 0:01:54]}  Qc7 {[%clk 0:02:12]} 17. Bf4 {[%clk 0:01:53]}  g5 {[%clk 0:02:12]} 18. Be3 {[%clk 0:01:45]}  a6 {[%clk 0:01:34]} 19. Bd4 {[%clk 0:01:39]}  Nxd4 {[%clk 0:01:05]} 20. Qxd4 {[%clk 0:01:39]}  Rc8 {[%clk 0:01:04]} 21. Ra3 {[%clk 0:01:36]}  f6 {[%clk 0:00:59]} 22. Kf1 {[%clk 0:01:32]}  Kf7 {[%clk 0:00:57]} 23. Kg2 {[%clk 0:01:32]}  Qc4 {[%clk 0:00:48]} 24. Rd1 {[%clk 0:01:20]}  Rc7 {[%clk 0:00:40]} 25. Qe3 {[%clk 0:01:09]}  Rhc8 {[%clk 0:00:33]} 26. Nbd2 {[%clk 0:00:58]}  Nxd2 {[%clk 0:00:32]} 27. Nxd2 {[%clk 0:00:59]}  Qf4 {[%clk 0:00:29]} 28. Qd3 {[%clk 0:00:17]}  fxe5 {[%clk 0:00:21]} 29. Nb1 {[%clk 0:00:18]}  e4 {[%clk 0:00:20]} 30. Qg3 {[%clk 0:00:18]}  Bf6 {[%clk 0:00:19]} 31. b5 {[%clk 0:00:09]}  axb5 {[%clk 0:00:14]} 32. Rb3 {[%clk 0:00:09]}  Qxg3+ {[%clk 0:00:13]} 33. Kxg3 {[%clk 0:00:08]}  Bxc3 {[%clk 0:00:14]} 34. Rxb5 {[%clk 0:00:09]}  Be5+ {[%clk 0:00:12]} 35. Kg2 {[%clk 0:00:09]}  Kf6 {[%clk 0:00:13]} 36. Nd2 {[%clk 0:00:06]}  Bf4 {[%clk 0:00:12]} 37. Nb3 {[%clk 0:00:06]}  Rc2 {[%clk 0:00:09]} 38. Nd4 {[%clk 0:00:05]}  Ra2 {[%clk 0:00:08]} 39. Rb6 {[%clk 0:00:05]}  Re8 {[%clk 0:00:08]} 40. Kg1 {[%clk 0:00:03]}  e3 {[%clk 0:00:08]} 41. Rf1 {[%clk 0:00:03]}  Ke5 {[%clk 0:00:05]} 0-1


[Site "https://www.chess.com"]

[Event "Titled Tuesday Blitz July 6 2021"]
[White "Stojanovski, Sandi"]
[Black "Saravana, Krishnan P."]
[WhiteFideId "1403249"]
[BlackFideId "5018382"]
[WhiteElo "2373"]
[BlackElo "2245"]
[Result "0-1"]
[Round "08"]
[TimeControl "180+1"]
[Date "2021.07.06"]
[WhiteClock "0:00:02"]
[BlackClock "0:01:46"]

1. c4 {[%clk 0:03:00]}  e5 {[%clk 0:02:59]} 2. g3 {[%clk 0:02:59]}  Nf6 {[%clk 0:02:57]} 3. Bg2 {[%clk 0:02:59]}  Bc5 {[%clk 0:02:57]} 4. Nc3 {[%clk 0:02:45]}  O-O {[%clk 0:02:57]} 5. e3 {[%clk 0:02:36]}  d6 {[%clk 0:02:54]} 6. Nge2 {[%clk 0:02:32]}  c6 {[%clk 0:02:54]} 7. O-O {[%clk 0:02:30]}  Bb6 {[%clk 0:02:54]} 8. d4 {[%clk 0:02:26]}  Qe7 {[%clk 0:02:52]} 9. b3 {[%clk 0:02:25]}  Re8 {[%clk 0:02:49]} 10. Bb2 {[%clk 0:01:47]}  Nbd7 {[%clk 0:02:46]} 11. b4 {[%clk 0:01:34]}  Nf8 {[%clk 0:02:41]} 12. c5 {[%clk 0:01:32]}  Bc7 {[%clk 0:02:37]} 13. a3 {[%clk 0:01:22]}  d5 {[%clk 0:02:35]} 14. dxe5 {[%clk 0:01:12]}  Ng4 {[%clk 0:02:33]} 15. Nf4 {[%clk 0:00:33]}  Nxe5 {[%clk 0:02:32]} 16. Nfxd5 {[%clk 0:00:30]}  cxd5 {[%clk 0:02:30]} 17. Nxd5 {[%clk 0:00:31]}  Qd8 {[%clk 0:02:29]} 18. Nxc7 {[%clk 0:00:17]}  Qxc7 {[%clk 0:02:27]} 19. Qd4 {[%clk 0:00:18]}  f6 {[%clk 0:02:24]} 20. Rad1 {[%clk 0:00:12]}  Be6 {[%clk 0:02:22]} 21. Bd5 {[%clk 0:00:07]}  Rad8 {[%clk 0:02:20]} 22. Qe4 {[%clk 0:00:06]}  Bxd5 {[%clk 0:02:06]} 23. Rxd5 {[%clk 0:00:05]}  Rxd5 {[%clk 0:02:05]} 24. Qxd5+ {[%clk 0:00:04]}  Qf7 {[%clk 0:02:05]} 25. Rd1 {[%clk 0:00:04]}  Nfg6 {[%clk 0:01:58]} 26. h3 {[%clk 0:00:02]}  h5 {[%clk 0:01:48]} 27. e4 {[%clk 0:00:02]}  h4 {[%clk 0:01:46]} 0-1


[Site "https://www.chess.com"]